Workbook

Sheet Soc_služba_ZD_el
I2: ZD SOC-7
M6: bez poistenia ošetrovateľskej starostlivosti
B7: ZMLUVNÉ DOJEDNANIA
B8: k poisteniu zodpovednosti za škodu | L8: Počet obyvateľov | M8: Základ | N8: Koeficient za počet obyvateľov | O8: Základné poistné s ošetrovateľskou službou (koef. 1,35) | P8: Základné poistné bez ošetrovateľskej služby
B9: spôsobenú poskytovateľom sociálnej služby
B10: k poistnej zmluve č. | L10: 1 - 1 000 | M10: 151 | N10: =N11-0.15 -> 0.55 | O10: =P10*1.35 -> 112.1175 | P10: =M10*N10 -> 83.05
L11: 1 001 - 3 000 | M11: 151 | N11: =N12-0.15 -> 0.7 | O11: =P11*1.35 -> 142.695 | P11: =M11*N11 -> 105.7
L12: 3 001 - 5 000 | M12: 151 | N12: =N13-0.15 -> 0.85 | O12: 173.2725 | P12: 128.35
B13: s účinnosťou od: | L13: 5 001 - 10 000 | M13: 151 | N13: 1 | O13: 203.85 | P13: 151
L14: 10 001 - 20 000 | M14: 151 | N14: =N13+0.1 -> 1.1 | O14: 224.235 | P14: 166.1
L15: 20 001 - 30 000 | M15: 151 | N15: 1.2 | O15: 244.62 | P15: 181.2
B16: 1. Na toto pripoistenie sa vzťahujú príslušné ustanovenia Občianskeho zákonníka, Všeobecné poistné podmienky pre poistenie majetku č. 106-7 (ďalej „VPP MP 106-7“), Všeobecné poistné podmienky pre poistenie zodpovednosti za škodu právnických osôb a podnikajúcich fyzických osôb (ďalej „VPP ZP 606-7“), tieto zmluvné dojednania a poistná zmluva. Poistník podpisom týchto zmluvných dojednaní prehlasuje, že bol s VPP MP 106-7 a VPP ZP 606-7 oboznámený a že ich prevzal. | L16: 30 001 - 40 000 | M16: 151 | N16: 1.3 | O16: 265.005 | P16: 196.3
L17: 40 001 - 50 000 | M17: 151 | N17: 1.4 | O17: 285.39 | P17: 211.4
B18: 2. K poisteniu všeobecnej zodpovednosti za škodu sa dojednáva toto pripoistenie, ktoré sa vzťahuje na zodpovednosť za škodu poskytovateľa sociálnej služby1, ktorú spôsobí prijímateľovi sociálnej služby2 podľa Zákona č. 448/2008 Z. z. o sociálnych službách a o zmene a doplnení zákona č. 455/1991 Zb. o živnostenskom podnikaní (živnostenský zákon) v znení neskorších predpisov. | L18: 50 001 - 60 000 | M18: 151 | N18: 1.5 | O18: 305.775 | P18: 226.5
L19: 60 001 - 70 000 | M19: 151 | N19: 1.6 | O19: 326.16 | P19: 241.6
B20: 3. Toto pripoistenie sa dojednáva za nasledovných podmienok: | L20: 70 001 - 80 000 | M20: 151 | N20: 1.7 | O20: 346.545 | P20: 256.7
L21: 80 001 - 90 000 | M21: 151 | N21: 1.8 | O21: 366.93 | P21: 271.8
B22: Zodpovednosť za škodu poskytovateľa sociálnej služby spôsobenú prijímateľovi soc. služby | L22: 90 001 - 100 000 | M22: 151 | N22: 1.9 | O22: 387.315 | P22: 286.9
L23: 100 001 - 110 000 | M23: 151 | N23: 2 | O23: 407.7 | P23: 302
G24: počet obyvateľov poskytovateľa soc. služby: | I24: 1 - 1 000 | L24: 110 001 - 120 000 | M24: 151 | N24: =N23+0.05 -> 2.05 | O24: 417.8925 | P24: 309.55
L25: 120 001 - 130 000 | M25: 151 | N25: 2.1 | O25: 428.085 | P25: 317.1
G26: poistná suma (sublimit plnenia za jednu a všetku poistné udalosti v jednom poistnom období): | I26: 10000 | L26: 130 001 - 140 000 | M26: 151 | N26: 2.15 | O26: 438.2775 | P26: 324.65
L27: 140 001 - 150 000 | M27: 151 | N27: 2.2 | O27: 448.47 | P27: 332.2
G28: spoluúčasť: | I28: 50 | L28: 150 001 - 160 000 | M28: 151 | N28: 2.25 | O28: 458.6625 | P28: 339.75
L29: 160 001 - 170 000 | M29: 151 | N29: 2.3 | O29: 468.855 | P29: 347.3
G30: rozsah poistného krytia: | H30: 3 | I30: bez poistenia ošetrovateľskej starostlivosti | L30: 170 001 - 180 000 | M30: 151 | N30: 2.35 | O30: 479.0475 | P30: 354.85
L31: 180 001 - 190 000 | M31: 151 | N31: 2.4 | O31: 489.24 | P31: 362.4
G32: ročné poistné za pripoistenie: | I32: =ROUND(VLOOKUP($I$24,$L$10:$P$40,IF($N$5=1,5,4),FALSE)*INDEX($M$44:$Q$52,VLOOKUP($I$26,$L$43:$R$52,7,FALSE),HLOOKUP($I$28,$M$43:$Q$53,11,FALSE)),2) -> 112.12 | L32: 190 001 - 200 000 | M32: 151 | N32: 2.45 | O32: 499.4325 | P32: 369.95
L33: 200 001 - 300 000 | M33: 151 | N33: 2.5 | O33: 509.625 | P33: 377.5
L34: 300 001 - 400 000 | M34: 151 | N34: =N33+0.1 -> 2.6 | O34: 530.01 | P34: 392.6
L35: 400 001 - 500 000 | M35: 151 | N35: 2.7 | O35: 550.395 | P35: 407.7
L36: 500 001 - 600 000 | M36: 151 | N36: 2.8 | O36: 570.78 | P36: 422.8
B37: V .................................................... , dňa ......................... | L37: 600 001 - 700 000 | M37: 151 | N37: 2.9 | O37: 591.165 | P37: 437.9
L38: 700 001 - 800 000 | M38: 151 | N38: 3 | O38: 611.55 | P38: 453
L39: 800 001 - 900 000 | M39: 151 | N39: 3.1 | O39: 631.935 | P39: 468.1
L40: 900 001 - 1 000 000 | M40: 151 | N40: 3.2 | O40: 652.32 | P40: 483.2
M43: 50 | N43: 90 | O43: 170 | P43: 330 | Q43: 660
D44: ............................................................... | I44: ............................................................... | L44: 10000 | M44: 1 | N44: 0.8 | O44: 0.7 | P44: 0.65 | Q44: 0.6 | R44: 1
D45: podpis poistníka | I45: podpis zástupcu poisťovne | L45: 16600 | M45: 1.1 | N45: 0.9 | O45: 0.8 | P45: 0.7 | Q45: 0.65 | R45: 2
L46: 33200 | M46: 1.15 | N46: 0.95 | O46: 0.85 | P46: 0.75 | Q46: 0.7 | R46: 3
B47: 1 § 3 ods. 3, 4 a 5 Zákona č. 448/2008 Z.z. o sociálnych službách a o zmene a doplnení zákona č. 455/1991 Zb. o živnostenskom podnikaní (živnostenský zákon) v znení neskorších predpisov | L47: 66400 | M47: 1.2 | N47: 1 | O47: 0.9 | P47: 0.8 | Q47: 0.75 | R47: 4
B48: 2 § 3 ods. 2 Zákona č. 448/2008 Z.z. o sociálnych službách a o zmene a doplnení zákona č. 455/1991 Zb. o živnostenskom podnikaní (živnostenský zákon) v znení neskorších predpisov | L48: 99600 | M48: 1.4 | N48: 1.1 | O48: 1 | P48: 0.9 | Q48: 0.8 | R48: 5
B49: 3 § 22 Zákona č. 448/2008 Z.z. o sociálnych službách a o zmene a doplnení zákona č. 455/1991 Zb. o živnostenskom podnikaní (živnostenský zákon) v znení neskorších predpisov | L49: 132800 | M49: 1.6 | N49: 1.3 | O49: 1.2 | P49: 1.1 | Q49: 1 | R49: 6
L50: 166000 | M50: 1.7 | N50: 1.4 | O50: 1.3 | P50: 1.2 | Q50: 1.1 | R50: 7
L51: 232400 | M51: 1.8 | N51: 1.5 | O51: 1.4 | P51: 1.3 | Q51: 1.2 | R51: 8
L52: 331900 | M52: 1.9 | N52: 1.55 | O52: 1.45 | P52: 1.35 | Q52: 1.25 | R52: 9
M53: 1 | N53: 2 | O53: 3 | P53: 4 | Q53: 5

Sheet ZD_soc_služba (ručne)
I2: ZD SOC-7
B7: ZMLUVNÉ DOJEDNANIA
B8: k poisteniu zodpovednosti za škodu
B9: spôsobenú poskytovateľom sociálnej služby
B10: k poistnej zmluve č.
B13: s účinnosťou od:
B16: 1. Na toto pripoistenie sa vzťahujú príslušné ustanovenia Občianskeho zákonníka, Všeobecné poistné podmienky pre poistenie majetku č. 106-7 (ďalej „VPP MP 106-7“), Všeobecné poistné podmienky pre poistenie zodpovednosti za škodu právnických osôb a podnikajúcich fyzických osôb (ďalej „VPP ZP 606-7“), tieto zmluvné dojednania a poistná zmluva. Poistník podpisom týchto zmluvných dojednaní prehlasuje, že bol s VPP MP 106-7 a VPP ZP 606-7 oboznámený a že ich prevzal.
B18: 2. K poisteniu všeobecnej zodpovednosti za škodu sa dojednáva toto pripoistenie, ktoré sa vzťahuje na zodpovednosť za škodu poskytovateľa sociálnej služby1, ktorú spôsobí prijímateľovi sociálnej služby2 podľa Zákona č. 448/2008 Z. z. o sociálnych službách a o zmene a doplnení zákona č. 455/1991 Zb. o živnostenskom podnikaní (živnostenský zákon) v znení neskorších predpisov.
B20: 3. Toto pripoistenie sa dojednáva za nasledovných podmienok:
B22: Zodpovednosť za škodu poskytovateľa sociálnej služby spôsobenú prijímateľovi soc. služby
G24: počet obyvateľov poskytovateľa soc. služby:
G26: poistná suma (sublimit plnenia za jednu a všetku poistné udalosti v jednom poistnom období):
G28: spoluúčasť:
B30: rozsah poistného krytia: | I30: s poistením ošetrovateľskej starostlivosti 3
I31: bez poistenia ošetrovateľskej starostlivosti 3
G33: ročné poistné za pripoistenie:
B37: V .................................................... , dňa .........................
D44: ............................................................... | I44: ...............................................................
D45: podpis poistníka | I45: podpis zástupcu poisťovne
B47: 1 § 3 ods. 3, 4 a 5 Zákona č. 448/2008 Z.z. o sociálnych službách a o zmene a doplnení zákona č. 455/1991 Zb. o živnostenskom podnikaní (živnostenský zákon) v znení neskorších predpisov
B48: 2 § 3 ods. 2 Zákona č. 448/2008 Z.z. o sociálnych službách a o zmene a doplnení zákona č. 455/1991 Zb. o živnostenskom podnikaní (živnostenský zákon) v znení neskorších predpisov
B49: 3 § 22 Zákona č. 448/2008 Z.z. o sociálnych službách a o zmene a doplnení zákona č. 455/1991 Zb. o živnostenskom podnikaní (živnostenský zákon) v znení neskorších predpisov

Sheet Soc_služba_sadzobník
B5: Sadzobník pre pripoistenie zodpovednosti za škodu poskytovateľa sociálnej služby
B7: Ročné poistné = Základné poistné x Koeficient sublimitu plnenia
B9: ZÁKLADNÉ POISTNÉ | J9: KOEFICIENT SUBLIMITU PLNENIA
B10: Počet obyvateľov poskytovateľa soc. služby | E10: Základ | F10: Koeficient za počet obyvateľov | G10: Základné poistné s ošetrovateľskou starostlivosťou v EUR | H10: Základné poistné bez ošetrovateľskej starostlivosti v EUR | J10: Poistná suma v EUR (sublimit plnenia) | K10: Spoluúčasť v EUR
B11: od | C11: do | D11: kód | K11: 50 | L11: 90 | M11: 170 | N11: 330 | O11: 660
B12: 1 | C12: 1000 | D12: O 1 | E12: 151 | F12: =F13-0.15 -> 0.55 | G12: =H12*1.35 -> 112.1175 | H12: =E12*F12 -> 83.05 | J12: 10000 | K12: 1 | L12: 0.8 | M12: 0.7 | N12: 0.65 | O12: 0.6
B13: 1001 | C13: 3000 | D13: O 2 | E13: 151 | F13: =F14-0.15 -> 0.7 | G13: =H13*1.35 -> 142.695 | H13: =E13*F13 -> 105.7 | J13: 16600 | K13: 1.1 | L13: 0.9 | M13: 0.8 | N13: 0.7 | O13: 0.65
B14: 3001 | C14: 5000 | D14: O 3 | E14: 151 | F14: =F15-0.15 -> 0.85 | G14: 173.2725 | H14: 128.35 | J14: 33200 | K14: 1.15 | L14: 0.95 | M14: 0.85 | N14: 0.75 | O14: 0.7
B15: 5001 | C15: 10000 | D15: O 4 | E15: 151 | F15: 1 | G15: 203.85 | H15: 151 | J15: 66400 | K15: 1.2 | L15: 1 | M15: 0.9 | N15: 0.8 | O15: 0.75
B16: 10001 | C16: 20000 | D16: O 5 | E16: 151 | F16: =F15+0.1 -> 1.1 | G16: 224.235 | H16: 166.1 | J16: 99600 | K16: 1.4 | L16: 1.1 | M16: 1 | N16: 0.9 | O16: 0.8
B17: 20001 | C17: 30000 | D17: O 6 | E17: 151 | F17: 1.2 | G17: 244.62 | H17: 181.2 | J17: 132800 | K17: 1.6 | L17: 1.3 | M17: 1.2 | N17: 1.1 | O17: 1
B18: 30001 | C18: 40000 | D18: O 7 | E18: 151 | F18: 1.3 | G18: 265.005 | H18: 196.3 | J18: 166000 | K18: 1.7 | L18: 1.4 | M18: 1.3 | N18: 1.2 | O18: 1.1
B19: 40001 | C19: 50000 | D19: O 8 | E19: 151 | F19: 1.4 | G19: 285.39 | H19: 211.4 | J19: 232400 | K19: 1.8 | L19: 1.5 | M19: 1.4 | N19: 1.3 | O19: 1.2
B20: 50001 | C20: 60000 | D20: O 9 | E20: 151 | F20: 1.5 | G20: 305.775 | H20: 226.5 | J20: 331900 | K20: 1.9 | L20: 1.55 | M20: 1.45 | N20: 1.35 | O20: 1.25
B21: 60001 | C21: 70000 | D21: O 10 | E21: 151 | F21: 1.6 | G21: 326.16 | H21: 241.6
B22: 70001 | C22: 80000 | D22: O 11 | E22: 151 | F22: 1.7 | G22: 346.545 | H22: 256.7
B23: 80001 | C23: 90000 | D23: O 12 | E23: 151 | F23: 1.8 | G23: 366.93 | H23: 271.8
B24: 90001 | C24: 100000 | D24: O 13 | E24: 151 | F24: 1.9 | G24: 387.315 | H24: 286.9 | J24: Počet obyvateľov poskytovateľa soc. služby:
B25: 100001 | C25: 110000 | D25: O 14 | E25: 151 | F25: 2 | G25: 407.7 | H25: 302
B26: 110001 | C26: 120000 | D26: O 15 | E26: 151 | F26: =F25+0.05 -> 2.05 | G26: 417.8925 | H26: 309.55 | J26: verejný poskytovateľ (obec, právn. osoba zriadená alebo založená obcou alebo VÚC)
B27: 120001 | C27: 130000 | D27: O 16 | E27: 151 | F27: 2.1 | G27: 428.085 | H27: 317.1 | J27: počet obyv. poskytovateľa = počet obyv. mesta/obce alebo VÚC,
B28: 130001 | C28: 140000 | D28: O 17 | E28: 151 | F28: 2.15 | G28: 438.2775 | H28: 324.65 | J28: pri právn. osobách počet obyv. zakladajúcej obce alebo VÚC
B29: 140001 | C29: 150000 | D29: O 18 | E29: 151 | F29: 2.2 | G29: 448.47 | H29: 332.2
B30: 150001 | C30: 160000 | D30: O 19 | E30: 151 | F30: 2.25 | G30: 458.6625 | H30: 339.75 | J30: neverejný poskytovateľ (cudzinec fyz. os., právn. osoba so sídl. mimo SR)
B31: 160001 | C31: 170000 | D31: O 20 | E31: 151 | F31: 2.3 | G31: 468.855 | H31: 347.3 | J31: počet obyv. poskytovateľa = počet obyv. mesta/obce alebo VÚC
B32: 170001 | C32: 180000 | D32: O 21 | E32: 151 | F32: 2.35 | G32: 479.0475 | H32: 354.85 | J32: na území ktorého má svoju pôsobnosť
B33: 180001 | C33: 190000 | D33: O 22 | E33: 151 | F33: 2.4 | G33: 489.24 | H33: 362.4
B34: 190001 | C34: 200000 | D34: O 23 | E34: 151 | F34: 2.45 | G34: 499.4325 | H34: 369.95 | J34: Ošetrovateľská starostlivosť:
B35: 200001 | C35: 300000 | D35: O 24 | E35: 151 | F35: 2.5 | G35: 509.625 | H35: 377.5 | J35: zdravotná starostlivosť v rozsahu ošetrovatelskej starostlivosti podľa Zákona č. 578/2004 Z.z. o poskytovateľoch zdravotnej starostlivosti, zdravotníckych pracovníkoch, stavovských organizáciách v zdravotníctve a o zmene a doplnení niektorých zákonov v znení neskorších predpisov
B36: 300001 | C36: 400000 | D36: O 25 | E36: 151 | F36: =F35+0.1 -> 2.6 | G36: 530.01 | H36: 392.6
B37: 400001 | C37: 500000 | D37: O 26 | E37: 151 | F37: 2.7 | G37: 550.395 | H37: 407.7
B38: 500001 | C38: 600000 | D38: O 27 | E38: 151 | F38: 2.8 | G38: 570.78 | H38: 422.8
B39: 600001 | C39: 700000 | D39: O 28 | E39: 151 | F39: 2.9 | G39: 591.165 | H39: 437.9
B40: 700001 | C40: 800000 | D40: O 29 | E40: 151 | F40: 3 | G40: 611.55 | H40: 453
B41: 800001 | C41: 900000 | D41: O 30 | E41: 151 | F41: 3.1 | G41: 631.935 | H41: 468.1
B42: 900001 | C42: 1000000 | D42: O 31 | E42: 151 | F42: 3.2 | G42: 652.32 | H42: 483.2
